fUST/lending_fUST_20241118
["ID","MTS","AMOUNT","RATE_DAILY","PERIOD"]
[342496271,1731929443180,-533.05,0.00014347,2]
[342496272,1731929443189,-500.0,0.00014347,2]
[342496273,1731929443199,-726.5,0.00014347,2]
[342496274,1731929443208,-151.0,0.00014347,2]
[342496275,1731929443219,-500.0,0.00014347,2]
[342496276,1731929443228,-1019.51,0.00014347,2]
[342496277,1731929443239,-500.0,0.00014347,2]
[342496278,1731929443248,-500.0,0.00014347,2]
[342496279,1731929443257,-500.0,0.00014347,2]
[342496280,1731929443266,-621.12,0.00014347,2]
[342496281,1731929443276,-500.0,0.00014347,2]
[342496282,1731929443287,-500.0,0.00014347,2]
[342496283,1731929443297,-500.0,0.00014347,2]
[342496284,1731929443307,-500.0,0.00014347,2]
[342496285,1731929443317,-151.0,0.00014347,2]
[342496286,1731929443329,-155.51398,0.00014347,2]
[342496287,1731929443339,-500.0,0.00014348,2]
[342496288,1731929443348,-151.0,0.00014348,2]
[342496289,1731929443358,-534.33,0.00014348,2]
[342496290,1731929443369,-151.0,0.00014348,2]
[342496291,1731929443378,-151.0,0.00014348,2]
[342496292,1731929443388,-500.0,0.00014348,2]
[342496293,1731929443398,-732.7,0.00014348,2]
[342496294,1731929443407,-500.0,0.00014348,2]
[342496295,1731929443417,-165.459577,0.00014348,2]
[342496296,1731929443427,-500.0,0.00014348,2]
[342496297,1731929443436,-500.0,0.00014348,2]
[342496298,1731929443445,-500.0,0.00014348,2]
[342496299,1731929443456,-500.0,0.00014348,2]
[342496300,1731929443465,-1197.82,0.00014348,2]
[342496301,1731929443475,-500.0,0.00014348,2]
[342496302,1731929443485,-1055.27,0.00014348,2]
[342496303,1731929443494,-622.11,0.00014348,2]
[342496304,1731929443504,-500.0,0.00014348,2]
[342496305,1731929443513,-500.0,0.00014348,2]
[342496306,1731929443523,-1062.03,0.00014348,2]
[342496307,1731929443532,-1235.07,0.00014348,2]
[342496308,1731929443542,-2346.24,0.00014348,2]
[342496309,1731929443551,-242.350452,0.00014348,2]
[342496310,1731929443561,-242.350452,0.00014348,2]
[342496311,1731929443571,-500.0,0.00014348,2]
[342496312,1731929443581,-831.79,0.00014348,2]
[342496313,1731929443590,-827.71,0.00014348,2]
[342496314,1731929443599,-151.0,0.00014348,2]
[342496315,1731929443609,-281.895127,0.00014348,2]
[342496316,1731929443619,-723.52,0.00014349,2]
[342496317,1731929443629,-500.0,0.00014349,2]
[342496318,1731929443639,-970.6,0.00014349,2]
[342496319,1731929443649,-154.666412,0.00014349,2]
[342496320,1731929443659,-151.0,0.00014349,2]
[342496321,1731929443669,-242.350452,0.00014349,2]
[342496322,1731929443678,-242.350452,0.00014349,2]
[342496323,1731929443688,-151.0,0.00014351,2]
[342496324,1731929443697,-159.070088,0.00014351,2]
[342496325,1731929443707,-151.0,0.00014351,2]
[342496326,1731929443717,-151.0,0.00014351,2]
[342496327,1731929443726,-151.0,0.00014352,2]
[342496328,1731929443736,-151.0,0.00014352,2]
[342496329,1731929443746,-151.0,0.00014354,2]
[342496330,1731929443755,-151.0,0.00014379,2]
[342496331,1731929443765,-151.0,0.00014379,2]
[342496332,1731929443774,-151.0,0.00014381,2]
[342496333,1731929443784,-556.569692,0.00014384,2]
[342496334,1731929443793,-444.796,0.00014463,2]
[342496335,1731929443803,-1000.0,0.00014522,2]
[342496336,1731929443812,-330.0,0.00014525,2]
[342496337,1731929443822,-204.24450645,0.00014619,2]
[342496338,1731929443831,-212.16328171,0.00014619,2]
[342496339,1731929443841,-158.51023431,0.00014619,2]
[342496340,1731929443850,-692.79,0.00014619,2]
[342496341,1731929443860,-500.0,0.0001462,2]
[342496342,1731929443869,-500.0,0.0001462,2]
[342496343,1731929443878,-872.44,0.0001462,2]
[342496344,1731929443888,-524.78,0.0001462,2]
[342496345,1731929443899,-500.0,0.0001462,2]
[342496346,1731929443908,-500.0,0.0001462,2]
[342496347,1731929443918,-500.0,0.0001462,2]
[342496348,1731929443928,-168.57,0.0001462,2]
[342496349,1731929443937,-500.0,0.0001462,2]
[342496350,1731929443946,-704.31,0.0001462,2]
[342496351,1731929443957,-500.0,0.0001462,2]
[342496352,1731929443967,-500.0,0.0001462,2]
[342496353,1731929443976,-3786.56,0.0001462,2]
[342496354,1731929443985,-500.0,0.0001462,2]
[342496355,1731929443995,-2132.81,0.0001462,2]
[342496356,1731929444005,-634.4,0.0001462,2]
[342496357,1731929444015,-558.12,0.0001462,2]
[342496358,1731929444025,-1013.14198801,0.0001462,2]
[342496359,1731929444038,-336.33801199,0.0001462,2]
[342496360,1731929444048,-1278.85497102,0.0001462,2]
[342496361,1731929444059,-586.09502898,0.0001462,2]
[342496362,1731929444071,-1526.93,0.0001462,2]
[342496363,1731929444081,-500.0,0.0001462,2]
[342496364,1731929444090,-500.0,0.0001462,2]
[342496365,1731929444099,-500.0,0.0001462,2]
[342496366,1731929444108,-500.0,0.0001462,2]
[342496367,1731929444118,-1490.54,0.0001462,2]
[342496368,1731929444128,-4668.52,0.0001462,2]
[342496369,1731929444137,-1092.28997102,0.0001462,2]
[342496370,1731929444149,-411.23467771,0.0001462,2]
[342496404,1731929445852,-626.68295598,0.00014072,2]
[342496415,1731929518574,185.52323,0.00013699,2]
[342496416,1731929672127,5108.91841103,0.00013972,2]
[342496417,1731929725895,415.49785684,0.00013971,2]
[342496418,1731929774842,2081.90114763,0.0001397,2]
[342496419,1731929862451,4470.30360966,0.00013971,2]
[342496420,1731929882161,8068.8492478,0.00013161,2]
[342496421,1731930052746,3911.51565847,0.00013971,2]
[342496424,1731930237574,185.52323,0.00013699,2]
[342496425,1731930243233,3422.57620117,0.0001397,2]
[342496427,1731930425139,-195.14679887,0.00014068,2]
[342496428,1731930433575,2994.75417598,0.00013969,2]
[342496430,1731930496253,14300.01939342,0.00025,120]
[342496433,1731930624788,2620.409904,0.00013969,2]
[342496452,1731930632142,-300.0,0.00014067,2]
[342496453,1731930632152,-300.0,0.00014067,2]
[342496454,1731930632162,-454.19101941,0.00014068,2]
[342496455,1731930632172,-500.0,0.00014068,2]
[342496456,1731930632181,-507.48520684,0.00014068,2]
[342496457,1731930632193,-62.23479316,0.00014068,2]
[342496458,1731930632203,-500.0,0.00014068,2]
[342496459,1731930632212,-500.0,0.00014068,2]
[342496460,1731930632221,-338.05576298,0.00014068,2]
[342496461,1731930632231,-500.0,0.00014068,2]
[342496462,1731930632239,-1776.78144786,0.00014068,2]
[342496463,1731930632251,-89.42855214,0.00014068,2]
[342496464,1731930632261,-500.0,0.00014068,2]
[342496465,1731930632270,-261.26494786,0.00014068,2]
[342496466,1731930632282,-816.223902,0.00014068,2]
[342496467,1731930632293,-258.57115014,0.00014068,2]
[342496468,1731930632303,-465.02884986,0.00014068,2]
[342496481,1731930632612,-34.97115014,0.00014068,2]
[342496482,1731930632621,-332.98713977,0.00014068,2]
[342496483,1731930632633,-167.01286023,0.00014068,2]
[342496484,1731930632645,-283.49213977,0.00014068,2]
[342496485,1731930632657,-2190.00006,0.00014068,2]
[342496602,1731930638415,-7130.53780023,0.00014068,2]
[342496603,1731930638425,-520.34,0.00014068,2]
[342496605,1731930638435,-500.0,0.00014068,2]
[342496606,1731930638446,-500.0,0.00014068,2]
[342496607,1731930638456,-500.0,0.00014068,2]
[342496608,1731930638465,-500.0,0.00014068,2]
[342496609,1731930638475,-1484.69,0.00014068,2]
[342496610,1731930638484,-500.0,0.00014068,2]
[342496611,1731930638493,-500.0,0.00014068,2]
[342496612,1731930638503,-324.80934214,0.00014069,2]
[342496613,1731930638512,-951.2,0.00014069,2]
[342496614,1731930638521,-500.0,0.00014069,2]
[342496615,1731930638531,-500.0,0.00014069,2]
[342496616,1731930638540,-763.39,0.00014069,2]
[342496617,1731930638549,-500.0,0.00014069,2]
[342496618,1731930638559,-500.0,0.00014069,2]
[342496620,1731930638568,-616.27,0.00014069,2]
[342496622,1731930638578,-500.0,0.00014069,2]
[342496623,1731930638587,-592.09,0.00014069,2]
[342496625,1731930638597,-500.0,0.00014069,2]
[342496627,1731930638607,-3313.24,0.00014069,2]
[342496629,1731930638617,-500.0,0.00014069,2]
[342496631,1731930638627,-555.1,0.00014069,2]
[342496633,1731930638636,-1180.8,0.00014069,2]
[342496635,1731930638646,-1631.83,0.00014069,2]
[342496636,1731930638660,-500.0,0.00014069,2]
[342496638,1731930638669,-10263.73,0.00014069,2]
[342496639,1731930638679,-500.0,0.00014069,2]
[342496640,1731930638688,-1748.05,0.00014069,2]
[342496641,1731930638699,-1304.22,0.00014069,2]
[342496642,1731930638709,-500.0,0.00014069,2]
[342496643,1731930638719,-4084.95,0.00014069,2]
[342496644,1731930638729,-543.8,0.00014069,2]
[342496645,1731930638738,-868.73,0.00014069,2]
[342496646,1731930638751,-1229.7,0.00014069,2]
[342496647,1731930638761,-606.19,0.0001407,2]
[342496648,1731930638770,-500.0,0.0001407,2]
[342496649,1731930638780,-517.73,0.0001407,2]
[342496650,1731930638789,-502.31,0.0001407,2]
[342496651,1731930638798,-602.52337189,0.0001407,2]
[342496652,1731930638808,-500.0,0.0001407,2]
[342496653,1731930638818,-517.97,0.0001407,2]
[342496654,1731930638828,-847.17,0.0001407,2]
[342496655,1731930638837,-500.0,0.0001407,2]
[342496656,1731930638847,-500.0,0.0001407,2]
[342496657,1731930638856,-500.0,0.0001407,2]
[342496658,1731930638868,-525.25,0.0001407,2]
[342496659,1731930638878,-504.22,0.0001407,2]
[342496660,1731930638887,-500.0,0.0001407,2]
[342496662,1731930638896,-500.0,0.0001407,2]
[342496664,1731930638906,-500.0,0.0001407,2]
[342496665,1731930638916,-500.0,0.0001407,2]
[342496667,1731930638926,-624.96,0.0001407,2]
[342496669,1731930638936,-509.28,0.0001407,2]
[342496670,1731930638946,-500.0,0.0001407,2]
[342496672,1731930638955,-500.0,0.0001407,2]
[342496674,1731930638966,-500.0,0.0001407,2]
[342496675,1731930638976,-701.98,0.0001407,2]
[342496677,1731930638986,-500.0,0.0001407,2]
[342496679,1731930638995,-500.0,0.0001407,2]
[342496681,1731930639005,-500.0,0.0001407,2]
[342496683,1731930639015,-500.0,0.0001407,2]
[342496685,1731930639024,-500.0,0.0001407,2]
[342496688,1731930639033,-500.0,0.0001407,2]
[342496690,1731930639043,-1104.72,0.0001407,2]
[342496692,1731930639052,-500.0,0.0001407,2]
[342496694,1731930639062,-500.0,0.0001407,2]
[342496696,1731930639071,-500.0,0.0001407,2]
[342496698,1731930639080,-665.96,0.0001407,2]
[342496700,1731930639090,-500.0,0.0001407,2]
[342496702,1731930639099,-934.55,0.0001407,2]
[342496704,1731930639111,-500.0,0.0001407,2]
[342496706,1731930639120,-569.36,0.0001407,2]
[342496708,1731930639129,-500.0,0.0001407,2]
[342496710,1731930639138,-500.0,0.0001407,2]
[342496712,1731930639147,-500.0,0.0001407,2]
[342496714,1731930639156,-500.0,0.0001407,2]
[342496716,1731930639166,-469.55697262,0.00014071,2]
[342496718,1731930639175,-500.0,0.00014071,2]
[342496720,1731930639186,-623.33,0.00014071,2]
[342496722,1731930639195,-500.0,0.00014071,2]
[342496724,1731930639205,-500.0,0.00014071,2]
[342496726,1731930639215,-500.0,0.00014071,2]
[342496728,1731930639224,-500.0,0.00014071,2]
[342496730,1731930639234,-500.0,0.00014071,2]
[342496732,1731930639243,-500.0,0.00014071,2]
[342496734,1731930639252,-500.0,0.00014071,2]
[342496736,1731930639262,-500.0,0.00014071,2]
[342496738,1731930639271,-350.12740084,0.00014071,2]
[342496740,1731930639285,-149.87259916,0.00014071,2]
[342496742,1731930639294,-500.0,0.00014071,2]
[342496744,1731930639303,-500.0,0.00014071,2]
[342496746,1731930639313,-438.64388281,0.00014071,2]
[342496748,1731930639324,-500.0,0.00014071,2]
[342496750,1731930639333,-500.0,0.00014071,2]
[342496752,1731930639343,-688.62,0.00014071,2]
[342496753,1731930639354,-671.64,0.00014071,2]
[342496754,1731930639370,-500.0,0.00014071,2]
[342496755,1731930639380,-500.0,0.00014071,2]
[342496756,1731930639390,-500.0,0.00014071,2]
[342496759,1731930639400,-500.0,0.00014071,2]
[342496761,1731930639409,-500.0,0.00014071,2]
[342496763,1731930639419,-500.0,0.00014071,2]
[342496765,1731930639428,-1098.01,0.00014071,2]
[342496767,1731930639437,-500.0,0.00014071,2]
[342496769,1731930639446,-500.0,0.00014071,2]
[342496770,1731930639455,-20.62552668,0.00014071,2]
[342496773,1731930639469,-1224.41447332,0.00014071,2]
[342496775,1731930639479,-500.0,0.00014071,2]
[342496776,1731930639489,-570.26,0.00014071,2]
[342496778,1731930639499,-500.0,0.00014071,2]
[342496779,1731930639508,-500.0,0.00014071,2]
[342496780,1731930639518,-730.14,0.00014071,2]
[342496781,1731930639527,-500.0,0.00014071,2]
[342496783,1731930639537,-1132.15,0.00014071,2]
[342496784,1731930639547,-500.0,0.00014071,2]
[342496785,1731930639556,-2150.72,0.00014071,2]
[342496786,1731930639566,-500.0,0.00014071,2]
[342496787,1731930639575,-500.0,0.00014071,2]
[342496788,1731930639585,-500.0,0.00014071,2]
[342496789,1731930639594,-762.47,0.00014071,2]
[342496790,1731930639603,-758.73,0.00014071,2]
[342496791,1731930639616,-500.0,0.00014071,2]
[342496792,1731930639626,-500.0,0.00014071,2]
[342496793,1731930639635,-500.0,0.00014071,2]
[342496794,1731930639645,-500.0,0.00014071,2]
[342496795,1731930639654,-663.22,0.00014071,2]
[342496796,1731930639666,-500.0,0.00014071,2]
[342496797,1731930639676,-889.72,0.00014071,2]
[342496798,1731930639686,-5005.75275462,0.00014246,2]
[342496799,1731930639695,-511.58189057,0.00014341,2]
[342496801,1731930639706,-160.93712919,0.00014341,2]
[342496804,1731930639715,-500.0,0.00014342,2]
[342496806,1731930639724,-569.72,0.00014342,2]
[342496807,1731930639737,-500.0,0.00014342,2]
[342496809,1731930639746,-500.0,0.00014342,2]
[342496811,1731930639755,-500.0,0.00014342,2]
[342496813,1731930639765,-1866.21,0.00014342,2]
[342496814,1731930639775,-500.0,0.00014342,2]
[342496815,1731930639785,-1336.06,0.00014342,2]
[342496816,1731930639795,-500.0,0.00014342,2]
[342496817,1731930639804,-500.0,0.00014342,2]
[342496818,1731930639815,-9604.03,0.00014342,2]
[342496819,1731930639826,-500.0,0.00014342,2]
[342496820,1731930639836,-500.0,0.00014342,2]
[342496821,1731930639846,-500.0,0.00014342,2]
[342496823,1731930639856,-500.0,0.00014342,2]
[342496825,1731930639868,-1484.69,0.00014342,2]
[342496826,1731930639878,-500.0,0.00014342,2]
[342496828,1731930639888,-500.0,0.00014342,2]
[342496830,1731930639898,-951.2,0.00014343,2]
[342496832,1731930639908,-500.0,0.00014343,2]
[342496834,1731930639917,-500.0,0.00014343,2]
[342496836,1731930639927,-763.39,0.00014343,2]
[342496838,1731930639937,-500.0,0.00014343,2]
[342496839,1731930639946,-500.0,0.00014343,2]
[342496840,1731930639955,-616.27,0.00014343,2]
[342496841,1731930639966,-191.23,0.00014343,2]
[342496842,1731930639975,-649.65938119,0.00014343,2]
[342496843,1731930639985,-3313.24,0.00014343,2]
[342496845,1731930639998,-398.83092059,0.00014343,2]
[342496847,1731930640007,-555.1,0.00014343,2]
[342496849,1731930640016,-1180.8,0.00014343,2]
[342496850,1731930640026,-1631.83,0.00014343,2]
[342496851,1731930640035,-500.0,0.00014343,2]
[342496852,1731930640045,-10263.73,0.00014343,2]
[342496853,1731930640055,-500.0,0.00014343,2]
[342496854,1731930640064,-1748.05,0.00014343,2]
[342496855,1731930640074,-1304.22,0.00014343,2]
[342496856,1731930640083,-500.0,0.00014343,2]
[342496857,1731930640093,-4084.95,0.00014343,2]
[342496858,1731930640102,-543.8,0.00014343,2]
[342496859,1731930640114,-868.73,0.00014343,2]
[342496860,1731930640124,-1229.7,0.00014343,2]
[342496861,1731930640133,-597.55979923,0.00014344,2]
[342496862,1731930640146,-8.63020077,0.00014344,2]
[342496863,1731930640156,-302.5116322,0.00014344,2]
[342496864,1731930640168,-197.4883678,0.00014344,2]
[342496865,1731930640178,-361.0116322,0.00014344,2]
[342496866,1731930640190,-156.7183678,0.00014344,2]
[342496867,1731930640199,-502.31,0.00014344,2]
[342496868,1731930640209,-500.0,0.00014344,2]
[342496869,1731930640218,-517.97,0.00014344,2]
[342496870,1731930640227,-847.17,0.00014344,2]
[342496871,1731930640237,-500.0,0.00014344,2]
[342496872,1731930640247,-500.0,0.00014344,2]
[342496873,1731930640257,-500.0,0.00014344,2]
[342496874,1731930640266,-525.25,0.00014344,2]
[342496875,1731930640276,-504.22,0.00014344,2]
[342496876,1731930640286,-500.0,0.00014344,2]
[342496877,1731930640295,-500.0,0.00014344,2]
[342496878,1731930640305,-500.0,0.00014344,2]
[342496879,1731930640314,-500.0,0.00014344,2]
[342496880,1731930640324,-624.96,0.00014344,2]
[342496881,1731930640333,-509.28,0.00014344,2]
[342496882,1731930640342,-500.0,0.00014344,2]
[342496883,1731930640352,-500.0,0.00014344,2]
[342496884,1731930640364,-500.0,0.00014344,2]
[342496885,1731930640373,-701.98,0.00014344,2]
[342496886,1731930640382,-500.0,0.00014344,2]
[342496887,1731930640392,-500.0,0.00014344,2]
[342496888,1731930640401,-500.0,0.00014344,2]
[342496889,1731930640410,-500.0,0.00014344,2]
[342496890,1731930640419,-500.0,0.00014344,2]
[342496891,1731930640428,-500.0,0.00014344,2]
[342496892,1731930640438,-1104.72,0.00014344,2]
[342496893,1731930640447,-500.0,0.00014344,2]
[342496894,1731930640456,-500.0,0.00014344,2]
[342496895,1731930640465,-500.0,0.00014344,2]
[342496896,1731930640475,-665.96,0.00014344,2]
[342496897,1731930640484,-500.0,0.00014344,2]
[342496898,1731930640493,-934.55,0.00014344,2]
[342496899,1731930640502,-500.0,0.00014344,2]
[342496900,1731930640512,-569.36,0.00014344,2]
[342496901,1731930640521,-500.0,0.00014344,2]
[342496902,1731930640530,-500.0,0.00014344,2]
[342496903,1731930640539,-500.0,0.00014344,2]
[342496904,1731930640548,-500.0,0.00014344,2]
[342496905,1731930640558,-500.0,0.00014345,2]
[342496906,1731930640567,-623.33,0.00014345,2]
[342496907,1731930640576,-500.0,0.00014345,2]
[342496908,1731930640585,-500.0,0.00014345,2]
[342496909,1731930640594,-500.0,0.00014345,2]
[342496910,1731930640603,-500.0,0.00014345,2]
[342496911,1731930640615,-500.0,0.00014345,2]
[342496912,1731930640625,-500.0,0.00014345,2]
[342496913,1731930640635,-500.0,0.00014345,2]
[342496914,1731930640646,-500.0,0.00014345,2]
[342496915,1731930640659,-500.0,0.00014345,2]
[342496916,1731930640669,-500.0,0.00014345,2]
[342496917,1731930640679,-500.0,0.00014345,2]
[342496918,1731930640688,-500.0,0.00014345,2]
[342496919,1731930640697,-500.0,0.00014345,2]
[342496920,1731930640707,-688.62,0.00014345,2]
[342496921,1731930640716,-671.64,0.00014345,2]
[342496922,1731930640726,-500.0,0.00014345,2]
[342496923,1731930640736,-500.0,0.00014345,2]
[342496924,1731930640745,-618.41278679,0.00014345,2]
[342496925,1731930640754,-500.0,0.00014345,2]
[342496926,1731930640763,-500.0,0.00014345,2]
[342496927,1731930640773,-500.0,0.00014345,2]
[342496928,1731930640782,-1098.01,0.00014345,2]
[342496929,1731930640792,-500.0,0.00014345,2]
[342496930,1731930640801,-500.0,0.00014345,2]
[342496931,1731930640810,-1245.04,0.00014345,2]
[342496932,1731930640820,-500.0,0.00014345,2]
[342496933,1731930640829,-570.26,0.00014345,2]
[342496934,1731930640839,-500.0,0.00014345,2]
[342496935,1731930640848,-500.0,0.00014345,2]
[342496936,1731930640857,-730.14,0.00014345,2]
[342496937,1731930640873,-500.0,0.00014345,2]
[342496938,1731930640882,-1132.15,0.00014345,2]
[342496939,1731930640891,-500.0,0.00014345,2]
[342496940,1731930640900,-2150.72,0.00014345,2]
[342496941,1731930640909,-344.59365846,0.00014345,2]
[342496942,1731930640919,-500.0,0.00014345,2]
[342496943,1731930640929,-500.0,0.00014345,2]
[342496944,1731930640938,-762.47,0.00014345,2]
[342496945,1731930640947,-758.73,0.00014345,2]
[342496946,1731930640957,-500.0,0.00014345,2]
[342496947,1731930640967,-500.0,0.00014345,2]
[342496948,1731930640977,-500.0,0.00014345,2]
[342496949,1731930640987,-500.0,0.00014345,2]
[342496950,1731930640996,-663.22,0.00014345,2]
[342496951,1731930641006,-500.0,0.00014345,2]
[342496952,1731930641015,-889.72,0.00014345,2]
[342496953,1731930641024,-151.0,0.00014346,2]
[342496954,1731930641033,-153.70103,0.00014346,2]
[342496955,1731930641043,-151.0,0.00014347,2]
[342496956,1731930641053,-151.0,0.00014347,2]
[342496957,1731930641062,-151.0,0.00014347,2]
[342496958,1731930641072,-151.0,0.00014347,2]
[342496959,1731930641082,-389.34,0.00014462,2]
[342496960,1731930641091,-330.0,0.00014521,2]
[342496961,1731930641101,-1000.0,0.00014523,2]
[342496962,1731930641116,-500.0,0.00014616,2]
[342496963,1731930641125,-569.72,0.00014616,2]
[342496964,1731930641135,-500.0,0.00014616,2]
[342496965,1731930641144,-500.0,0.00014616,2]
[342496966,1731930641155,-500.0,0.00014616,2]
[342496967,1731930641165,-1866.21,0.00014616,2]
[342496968,1731930641174,-500.0,0.00014616,2]
[342496969,1731930641183,-1336.06,0.00014616,2]
[342496970,1731930641193,-500.0,0.00014616,2]
[342496971,1731930641202,-500.0,0.00014616,2]
[342496972,1731930641211,-9604.03,0.00014616,2]
[342496973,1731930641221,-500.0,0.00014616,2]
[342496974,1731930641231,-500.0,0.00014616,2]
[342496975,1731930641240,-500.0,0.00014616,2]
[342496976,1731930641249,-500.0,0.00014616,2]
[342496977,1731930641259,-1484.69,0.00014616,2]
[342496978,1731930641268,-500.0,0.00014616,2]
[342496979,1731930641277,-500.0,0.00014616,2]
[342496980,1731930641287,-951.2,0.00014617,2]
[342496981,1731930641299,-500.0,0.00014617,2]
[342496982,1731930641308,-500.0,0.00014617,2]
[342496983,1731930641318,-763.39,0.00014617,2]
[342496984,1731930641327,-500.0,0.00014617,2]
[342496985,1731930641337,-500.0,0.00014617,2]
[342496986,1731930641346,-616.27,0.00014617,2]
[342496987,1731930641355,-3313.24,0.00014617,2]
[342496988,1731930641369,-555.1,0.00014617,2]
[342496989,1731930641378,-1180.8,0.00014617,2]
[342496990,1731930641387,-1631.83,0.00014617,2]
[342496991,1731930641397,-500.0,0.00014617,2]
[342496992,1731930641407,-10263.73,0.00014617,2]
[342496993,1731930641416,-500.0,0.00014617,2]
[342496994,1731930641426,-1748.05,0.00014617,2]
[342496995,1731930641435,-1304.22,0.00014617,2]
[342496996,1731930641445,-500.0,0.00014617,2]
[342496997,1731930641454,-4084.95,0.00014617,2]
[342496998,1731930641463,-543.8,0.00014617,2]
[342496999,1731930641472,-868.73,0.00014617,2]
[342497000,1731930641482,-1229.7,0.00014617,2]
[342497001,1731930641491,-606.19,0.00014618,2]
[342497002,1731930641501,-500.0,0.00014618,2]
[342497003,1731930641510,-517.73,0.00014618,2]
[342497004,1731930641519,-502.31,0.00014618,2]
[342497005,1731930641530,-500.0,0.00014618,2]
[342497006,1731930641539,-517.97,0.00014618,2]
[342497007,1731930641549,-847.17,0.00014618,2]
[342497008,1731930641558,-500.0,0.00014618,2]
[342497009,1731930641568,-500.0,0.00014618,2]
[342497010,1731930641577,-500.0,0.00014618,2]
[342497011,1731930641586,-525.25,0.00014618,2]
[342497012,1731930641595,-504.22,0.00014618,2]
[342497013,1731930641604,-500.0,0.00014618,2]
[342497014,1731930641616,-500.0,0.00014618,2]
[342497015,1731930641626,-500.0,0.00014618,2]
[342497016,1731930641635,-500.0,0.00014618,2]
[342497017,1731930641644,-624.96,0.00014618,2]
[342497018,1731930641654,-509.28,0.00014618,2]
[342497019,1731930641667,-500.0,0.00014618,2]
[342497020,1731930641676,-500.0,0.00014618,2]
[342497021,1731930641685,-500.0,0.00014618,2]
[342497022,1731930641697,-701.98,0.00014618,2]
[342497023,1731930641706,-500.0,0.00014618,2]
[342497024,1731930641716,-500.0,0.00014618,2]
[342497025,1731930641726,-500.0,0.00014618,2]
[342497026,1731930641737,-500.0,0.00014618,2]
[342497027,1731930641746,-500.0,0.00014618,2]
[342497028,1731930641755,-500.0,0.00014618,2]
[342497029,1731930641764,-787.6741591,0.00014618,2]
[342497030,1731930641934,-500.0,0.00014068,2]
[342497031,1731930641944,-22.82500179,0.00014342,2]
[342497099,1731930643144,-477.17499821,0.00014342,2]
[342497101,1731930643154,-42.82500179,0.00014616,2]
[342497104,1731930643166,-457.17499821,0.00014616,2]
[342497107,1731930643175,-317.0458409,0.00014618,2]
[342497110,1731930643185,-500.0,0.00014618,2]
[342497112,1731930643195,-500.0,0.00014618,2]
[342497113,1731930643204,-500.0,0.00014618,2]
[342497116,1731930643213,-665.96,0.00014618,2]
[342497118,1731930643223,-500.0,0.00014618,2]
[342497119,1731930643232,-934.55,0.00014618,2]
[342497120,1731930643242,-500.0,0.00014618,2]
[342497121,1731930643251,-569.36,0.00014618,2]
[342497122,1731930643261,-500.0,0.00014618,2]
[342497123,1731930643271,-500.0,0.00014618,2]
[342497124,1731930643280,-500.0,0.00014618,2]
[342497125,1731930643290,-500.0,0.00014618,2]
[342497126,1731930643299,-500.0,0.00014619,2]
[342497127,1731930643308,-623.33,0.00014619,2]
[342497128,1731930643318,-500.0,0.00014619,2]